fUSD/lending_fUSD_20240210
["ID","MTS","AMOUNT","RATE_DAILY","PERIOD"]
[313667872,1707559844571,-500.0,0.00022598,2]
[313667873,1707559844580,-500.0,0.00022598,2]
[313667874,1707559844590,-500.0,0.00022598,2]
[313667875,1707559844599,-500.0,0.00022598,2]
[313667876,1707559844608,-500.0,0.00022598,2]
[313667877,1707559844618,-230.84551488,0.00022598,2]
[313667878,1707559844628,-500.0,0.00022598,2]
[313667879,1707559844637,-500.0,0.00022598,2]
[313667880,1707559844646,-500.0,0.00022598,2]
[313667881,1707559844656,-248.25831053,0.00022598,2]
[313667882,1707559844665,-500.0,0.00022598,2]
[313667883,1707559844674,-500.0,0.00022598,2]
[313667884,1707559844684,-305.92120559,0.00022598,2]
[313667885,1707559844692,-500.0,0.00022598,2]
[313667886,1707559844702,-500.0,0.00022598,2]
[313667887,1707559844711,-500.0,0.00022598,2]
[313667888,1707559844720,-500.0,0.00022598,2]
[313667889,1707559844729,-500.0,0.00022598,2]
[313667890,1707559844738,-500.0,0.00022598,2]
[313667891,1707559844747,-500.0,0.00022598,2]
[313667892,1707559844757,-500.0,0.00022598,2]
[313667893,1707559844766,-500.0,0.00022598,2]
[313667894,1707559844780,-500.0,0.00022598,2]
[313667895,1707559844789,-500.0,0.00022598,2]
[313667896,1707559844798,-556.76,0.00022598,2]
[313667897,1707559844807,-500.0,0.00022598,2]
[313667898,1707559844817,-500.0,0.00022598,2]
[313667899,1707559844826,-624.28,0.00022598,2]
[313667900,1707559844834,-500.0,0.00022598,2]
[313667901,1707559844843,-500.0,0.00022598,2]
[313667902,1707559844854,-500.0,0.00022598,2]
[313667903,1707559844863,-150.0,0.00022598,2]
[313667904,1707559844872,-243.0852274,0.00022598,2]
[313667905,1707559844881,-500.0,0.00022598,2]
[313667906,1707559844890,-500.0,0.00022598,2]
[313667907,1707559844899,-500.0,0.00022598,2]
[313667908,1707559844908,-500.0,0.00022598,2]
[313667909,1707559844917,-992.72,0.00022598,2]
[313667910,1707559844926,-500.0,0.00022598,2]
[313667911,1707559844935,-500.0,0.00022598,2]
[313667912,1707559844945,-500.0,0.00022598,2]
[313667913,1707559844954,-589.03194655,0.00022598,2]
[313667914,1707559844963,-500.0,0.00022598,2]
[313667915,1707559844972,-500.0,0.00022598,2]
[313667916,1707559844982,-1554.44,0.00022598,2]
[313667917,1707559844990,-500.0,0.00022598,2]
[313667918,1707559844999,-220.50574799,0.00022598,2]
[313667919,1707559845008,-500.0,0.00022598,2]
[313667920,1707559845018,-295.50130593,0.00022598,2]
[313667921,1707559845027,-500.0,0.00022598,2]
[313667922,1707559845036,-277.07485574,0.00022598,2]
[313667923,1707559845045,-500.0,0.00022598,2]
[313667924,1707559845053,-500.0,0.00022598,2]
[313667925,1707559845062,-500.0,0.00022598,2]
[313667926,1707559845071,-646.64,0.00022598,2]
[313667927,1707559845080,-500.0,0.00022598,2]
[313667928,1707559845090,-522.3200719,0.00022598,2]
[313667929,1707559845098,-518.45,0.00022598,2]
[313667930,1707559845107,-500.0,0.00022598,2]
[313667931,1707559845116,-500.0,0.00022598,2]
[313667932,1707559845125,-538.7677623,0.00022598,2]
[313667933,1707559845134,-500.0,0.00022598,2]
[313667934,1707559845143,-500.0,0.00022598,2]
[313667935,1707559845153,-500.0,0.00022598,2]
[313667936,1707559845162,-540.97601715,0.00022598,2]
[313667937,1707559845171,-500.0,0.00022598,2]
[313667938,1707559845180,-500.0,0.00022598,2]
[313667939,1707559845189,-500.0,0.00022598,2]
[313667940,1707559845198,-500.0,0.00022598,2]
[313667941,1707559845208,-500.0,0.00022598,2]
[313667942,1707559845217,-500.0,0.00022598,2]
[313667943,1707559845226,-500.0,0.00022598,2]
[313667944,1707559845235,-500.0,0.00022598,2]
[313667945,1707559845244,-850.26,0.00022598,2]
[313667946,1707559845253,-500.0,0.00022598,2]
[313667947,1707559845263,-500.0,0.00022598,2]
[313667948,1707559845272,-543.72205953,0.00022598,2]
[313667949,1707559845281,-500.0,0.00022598,2]
[313667950,1707559845291,-500.0,0.00022598,2]
[313667951,1707559845300,-500.0,0.00022598,2]
[313667952,1707559845309,-210.68477298,0.00022598,2]
[313667953,1707559845318,-500.0,0.00022598,2]
[313667954,1707559845327,-161.29115814,0.00022598,2]
[313667955,1707559845336,-500.0,0.00022598,2]
[313667956,1707559845345,-500.0,0.00022598,2]
[313667957,1707559845354,-577.71148256,0.00022598,2]
[313667958,1707559845363,-500.0,0.00022598,2]
[313667959,1707559845372,-500.0,0.00022598,2]
[313667960,1707559845382,-500.0,0.00022598,2]
[313667961,1707559845392,-546.37354012,0.00022598,2]
[313667962,1707559845401,-2622.16,0.00022598,2]
[313667963,1707559845410,-3356.81,0.00022598,2]
[313667964,1707559845419,-500.0,0.00022598,2]
[313667965,1707559845428,-500.0,0.00022598,2]
[313667966,1707559845438,-500.0,0.00022598,2]
[313667967,1707559845447,-5450.29,0.00022598,2]
[313667968,1707559845456,-1264.13,0.00022598,2]
[313667969,1707559845465,-506.43,0.00022598,2]
[313667970,1707559845474,-4951.21,0.00022598,2]
[313667971,1707559845483,-2308.62,0.00022598,2]
[313667972,1707559845493,-500.0,0.00022598,2]
[313667973,1707559845502,-888.05,0.00022598,2]
[313667974,1707559845511,-784.83,0.00022598,2]
[313667975,1707559845520,-701.8,0.00022598,2]
[313667976,1707559845531,-500.0,0.00022598,2]
[313667977,1707559845540,-500.0,0.00022598,2]
[313667978,1707559845549,-500.0,0.00022598,2]
[313667979,1707559845558,-500.0,0.00022598,2]
[313667980,1707559845568,-500.0,0.00022598,2]
[313667981,1707559845577,-253.53566528,0.00022598,2]
[313667982,1707559845586,-2277.57,0.00022598,2]
[313667983,1707559845595,-500.0,0.00022598,2]
[313667984,1707559845604,-195.29949278,0.00022598,2]
[313667985,1707559845613,-514.82992726,0.00022598,2]
[313667986,1707559845622,-2074.6,0.00022598,2]
[313667987,1707559845632,-500.0,0.00022598,2]
[313667988,1707559845642,-500.0,0.00022598,2]
[313667989,1707559845651,-994.18,0.00022598,2]
[313667990,1707559845660,-741.28,0.00022598,2]
[313667991,1707559845671,-288.79652912,0.00022598,2]
[313667992,1707559845681,-500.0,0.00022598,2]
[313667993,1707559845690,-2865.17,0.00022598,2]
[313667994,1707559845700,-2069.78,0.00022598,2]
[313667995,1707559845709,-251.53228561,0.00022598,2]
[313667996,1707559845718,-500.0,0.00022598,2]
[313667997,1707559845727,-500.0,0.00022598,2]
[313667998,1707559845736,-500.0,0.00022598,2]
[313667999,1707559845746,-2785.32,0.00022598,2]
[313668000,1707559845756,-500.0,0.00022598,2]
[313668001,1707559845765,-1316.15,0.00022598,2]
[313668002,1707559845776,-234.4028013,0.00022598,2]
[313668004,1707559845787,-500.0,0.00022598,2]
[313668005,1707559845797,-500.0,0.00022598,2]
[313668006,1707559845806,-5808.35,0.00022598,2]
[313668007,1707559845815,-520.21,0.00022598,2]
[313668008,1707559845824,-2486.19,0.00022598,2]
[313668009,1707559845833,-500.0,0.00022598,2]
[313668010,1707559845842,-1836.09,0.00022598,2]
[313668011,1707559845851,-500.0,0.00022598,2]
[313668012,1707559845862,-500.0,0.00022598,2]
[313668013,1707559845871,-517.35,0.00022598,2]
[313668014,1707559845881,-500.0,0.00022598,2]
[313668015,1707559845890,-500.0,0.00022598,2]
[313668016,1707559845899,-949.69,0.00022598,2]
[313668017,1707559845908,-500.0,0.00022598,2]
[313668018,1707559845917,-500.0,0.00022598,2]
[313668019,1707559845927,-709.08,0.00022598,2]
[313668020,1707559845936,-4121.13,0.00022598,2]
[313668021,1707559845945,-500.0,0.00022598,2]
[313668022,1707559845954,-500.0,0.00022598,2]
[313668023,1707559845963,-1470.56,0.00022598,2]
[313668024,1707559845972,-766.85,0.00022598,2]
[313668025,1707559845981,-1312.92,0.00022598,2]
[313668026,1707559845990,-500.0,0.00022598,2]
[313668027,1707559845999,-500.0,0.00022598,2]
[313668028,1707559846008,-500.0,0.00022598,2]
[313668029,1707559846017,-500.0,0.00022598,2]
[313668030,1707559846026,-500.0,0.00022598,2]
[313668031,1707559846035,-500.0,0.00022598,2]
[313668032,1707559846043,-2346.66,0.00022598,2]
[313668033,1707559846052,-500.0,0.00022598,2]
[313668034,1707559846061,-713.55,0.00022598,2]
[313668035,1707559846070,-500.0,0.00022598,2]
[313668036,1707559846079,-500.0,0.00022598,2]
[313668037,1707559846088,-500.0,0.00022598,2]
[313668038,1707559846097,-650.01,0.00022598,2]
[313668039,1707559846105,-1306.78,0.00022598,2]
[313668040,1707559846114,-8685.99,0.00022598,2]
[313668041,1707559846123,-500.0,0.00022598,2]
[313668042,1707559846133,-1255.67,0.00022598,2]
[313668043,1707559846142,-500.0,0.00022598,2]
[313668044,1707559846151,-500.0,0.00022598,2]
[313668045,1707559846161,-1937.46,0.00022598,2]
[313668049,1707559846349,-500.0,0.00022598,2]
[313668051,1707559846359,-500.0,0.00022598,2]
[313668053,1707559846369,-338.36740255,0.00022598,2]
[313668054,1707559846379,-4369.92,0.00022598,2]
[313668055,1707559846387,-373.25133051,0.00022598,2]
[313668056,1707559846397,-2354.51,0.00022599,2]
[313668057,1707559846407,-772.55,0.00022599,2]
[313668058,1707559846417,-792.33,0.00022599,2]
[313668059,1707559846426,-500.0,0.00022599,2]
[313668060,1707559846436,-15634.51,0.00022599,2]
[313668061,1707559846445,-500.0,0.00022599,2]
[313668062,1707559846455,-500.0,0.00022599,2]
[313668063,1707559846464,-659.02,0.00022599,2]
[313668064,1707559846473,-501.4,0.00022599,2]
[313668065,1707559846483,-2806.96,0.00022599,2]
[313668066,1707559846492,-1783.24,0.00022599,2]
[313668067,1707559846502,-807.0,0.00022599,2]
[313668068,1707559846512,-1999.39,0.00022599,2]
[313668069,1707559846521,-2729.49,0.00022599,2]
[313668070,1707559846531,-1337.8,0.00022599,2]
[313668071,1707559846540,-2054.25,0.00022599,2]
[313668072,1707559846550,-831.91,0.00022599,2]
[313668073,1707559846559,-3013.46,0.00022599,2]
[313668074,1707559846569,-3286.74,0.00022599,2]
[313668075,1707559846578,-1984.96,0.00022599,2]
[313668076,1707559846587,-913.64,0.00022599,2]
[313668077,1707559846596,-2195.67,0.00022599,2]
[313668078,1707559846606,-559.94,0.00022599,2]
[313668079,1707559846615,-500.0,0.00022599,2]
[313668080,1707559846625,-500.0,0.00022599,2]
[313668081,1707559846634,-549.16,0.00022599,2]
[313668082,1707559846643,-641.96,0.00022599,2]
[313668083,1707559846653,-10253.21,0.00022599,2]
[313668084,1707559846662,-500.0,0.00022599,2]
[313668085,1707559846671,-1608.94,0.00022599,2]
[313668086,1707559846681,-500.0,0.00022599,2]
[313668087,1707559846690,-11867.62,0.00022599,2]
[313668088,1707559846699,-1176.62,0.00022599,2]
[313668089,1707559846708,-500.0,0.00022599,2]
[313668090,1707559846717,-500.0,0.00022599,2]
[313668091,1707559846726,-68390.61954384,0.000226,2]
[313668092,1707559846743,-14292.13741086,0.000226,2]
[313668093,1707559846755,-277.47,0.000226,2]
[313668094,1707559846766,-636.93891477,0.000226,2]
[313668095,1707559846801,-592.53143083,0.000226,2]
[313668096,1707559846813,-500.0,0.000226,2]
[313668097,1707559846833,-6404.49287643,0.000226,2]
[313668098,1707559846865,15000.0,0.0002245,2]
[313668099,1707559846999,15000.0,0.00022488,2]
[313668100,1707559847387,-210.50707735,0.00022525,2]
[313668101,1707559847399,-1941.60952819,0.00022525,2]
[313668102,1707559847411,-885.0,0.00022525,2]
[313668103,1707559850456,166.18,0.00022281,2]
[313668104,1707559854142,15000.0,0.00022,2]
[313668105,1707559854559,15000.0,0.00022038,2]
[313668106,1707559854979,15000.0,0.00022075,2]
[313668107,1707559866613,20676.24931223,0.0002237,2]
[313668108,1707559947243,159.79,0.00021791,2]
[313668109,1707559947458,159.79,0.00022359,2]
[313668111,1707559961883,60550.4221,0.00022461,2]
[313668115,1707560069870,462.86,0.00021626,2]
[313668117,1707560089603,165.59,0.00021625,2]
[313668118,1707560095050,280.50329832,0.00022494,2]
[313668120,1707560121316,189.26,0.00019692,2]
[313668121,1707560121480,189.26,0.00021956,2]
[313668122,1707560121548,500.0,0.0002161,2]
[313668123,1707560125738,517.37,0.0002161,2]
[313668125,1707560141515,175.51,0.00021608,2]
[313668126,1707560268703,154.40194331,0.00022494,2]
[313668127,1707560276264,29922.3482,0.00022494,2]
[313668128,1707560285590,271.06744325,0.00022494,2]
[313668129,1707560287209,16000.0,0.00022,2]
[313668130,1707560287787,16000.0,0.0002206,2]
[313668131,1707560288000,16000.0,0.0002212,2]
[313668132,1707560288405,16000.0,0.0002218,2]
[313668133,1707560288814,16000.0,0.0002224,2]
[313668134,1707560289224,16000.0,0.000223,2]
[313668135,1707560289672,16000.0,0.0002236,2]
[313668136,1707560290095,16000.0,0.0002242,2]
[313668137,1707560290747,16000.0,0.0002248,2]
[313668138,1707560311227,162.47,0.00022244,2]
[313668139,1707560316200,16000.0,0.00022,2]
[313668140,1707560316620,16000.0,0.0002206,2]
[313668141,1707560317525,16000.0,0.0002212,2]
[313668142,1707560346757,16000.0,0.00022,2]
[313668143,1707560347205,16000.0,0.0002206,2]
[313668144,1707560347633,16000.0,0.0002212,2]
[313668145,1707560348076,16000.0,0.0002218,2]
[313668146,1707560348494,16000.0,0.0002224,2]
[313668147,1707560348914,16000.0,0.000223,2]
[313668148,1707560349322,16000.0,0.0002236,2]
[313668149,1707560349731,16000.0,0.0002242,2]
[313668150,1707560350442,16000.0,0.0002248,2]
[313668151,1707560387135,-150.0,0.00022524,2]
[313668152,1707560387159,-12976.61401819,0.00022524,2]
[313668153,1707560389410,159.79,0.00021757,2]
[313668154,1707560394266,156.45789889,0.00022425,2]
[313668155,1707560417084,4244.05,0.00021594,2]
[313668156,1707560476022,237.18401287,0.00022494,2]
[313668157,1707560494642,150.0,0.00022403,2]
[313668158,1707560494918,150.0,0.00022445,2]
[313668159,1707560494964,150.0,0.00022358,2]
[313668160,1707560495000,150.0,0.00022443,2]
[313668161,1707560495046,150.0,0.00022361,2]
[313668162,1707560495078,150.0,0.00022359,2]
[313668163,1707560495112,150.0,0.00022416,2]
[313668164,1707560495144,150.0,0.0002237,2]
[313668165,1707560495208,150.0,0.00022481,2]
[313668166,1707560495242,150.0,0.00022413,2]
[313668167,1707560495286,150.0,0.00022405,2]
[313668168,1707560495562,150.0,0.00022416,2]
[313668169,1707560495602,150.0,0.00022445,2]
[313668170,1707560495685,286.19822252,0.00022365,2]
[313668171,1707560495756,150.0,0.00022367,2]
[313668172,1707560495808,150.0,0.00022413,2]
[313668173,1707560495859,150.0,0.00022439,2]
[313668174,1707560495910,150.0,0.00022481,2]
[313668175,1707560502303,150.0,0.00022485,2]
[313668176,1707560502391,150.0,0.0002246,2]
[313668177,1707560502808,150.0,0.00022466,2]
[313668178,1707560502868,150.0,0.0002241,2]
[313668179,1707560525235,211.0,0.00021552,2]
[313668180,1707560554294,150.0,0.00022419,2]
[313668181,1707560558839,385.71,0.00021588,2]
[313668182,1707560571871,234437.95,0.000225,2]
[313668183,1707560597120,170.33,0.0001967,2]
[313668184,1707560597318,170.33,0.00021934,2]
[313668185,1707560614391,150.0,0.00022393,2]
[313668186,1707560623639,586.1,0.00021587,2]
[313668187,1707560666934,207.53601127,0.00022494,2]
[313668188,1707560680741,303.69195406,0.000225,2]
[313668189,1707560702667,5000.0,0.00022495,2]
[313668190,1707560735376,155.0,0.000225,2]
[313668191,1707560741630,972.83124133,0.000225,2]
[313668192,1707560749374,155.0,0.000225,2]
[313668193,1707560816146,972.83124133,0.000225,2]
[313668194,1707560844079,1047.9265,0.00022495,2]
[313668195,1707560846676,5000.0,0.00022494,2]
[313668196,1707560852293,181.59400987,0.00022493,2]
[313668197,1707560858165,303.23530258,0.0002245,2]
[313668198,1707560888643,972.83124133,0.000225,2]
[313668202,1707560914620,150.0,0.00022384,2]
[313668203,1707560914674,150.0,0.00022499,2]
[313668204,1707560915051,150.0,0.0002233,2]
[313668205,1707560915084,150.0,0.0002233,2]
[313668206,1707560915112,150.0,0.0002235,2]
[313668207,1707560915143,150.0,0.00022378,2]
[313668208,1707560915177,150.0,0.00022478,2]
[313668209,1707560915209,150.0,0.00022411,2]
[313668210,1707560915238,150.0,0.00022362,2]
[313668211,1707560915373,150.0,0.00022452,2]
[313668212,1707560915421,150.0,0.00022408,2]
[313668213,1707560915453,150.0,0.00022358,2]
[313668214,1707560915480,150.0,0.00022392,2]
[313668215,1707560915509,150.0,0.00022376,2]
[313668216,1707560915764,150.0,0.00022367,2]
[313668217,1707560915795,150.0,0.00022342,2]
[313668218,1707560915832,150.0,0.00022408,2]
[313668219,1707560915861,150.0,0.00022494,2]
[313668220,1707560915892,150.0,0.0002247,2]
[313668221,1707560915922,150.0,0.00022353,2]
[313668222,1707560915964,150.0,0.00022342,2]
[313668223,1707560915993,150.0,0.00022464,2]
[313668224,1707560916023,150.0,0.00022387,2]
[313668225,1707560916057,150.0,0.00022414,2]
[313668226,1707560916091,150.0,0.00022401,2]
[313668227,1707560916120,150.0,0.00022393,2]
[313668228,1707560916155,150.0,0.00022356,2]
[313668229,1707560916182,150.0,0.00022435,2]
[313668230,1707560916209,150.0,0.00022491,2]
[313668231,1707560916237,150.0,0.0002248,2]
[313668232,1707560916271,150.0,0.00022474,2]
[313668233,1707560916299,150.0,0.00022404,2]
[313668234,1707560916339,150.0,0.00022354,2]
[313668235,1707560916371,150.0,0.00022339,2]
[313668236,1707560916398,150.0,0.00022451,2]
[313668237,1707560916423,150.0,0.00022358,2]
[313668238,1707560916449,150.0,0.00022375,2]
[313668239,1707560916485,150.0,0.00022403,2]
[313668240,1707560916510,150.0,0.00022491,2]
[313668241,1707560916541,150.0,0.00022479,2]
[313668242,1707560916567,150.0,0.00022323,2]
[313668243,1707560916594,150.0,0.00022351,2]
[313668244,1707560916702,150.0,0.00022456,2]
[313668245,1707560916752,150.0,0.00022354,2]
[313668246,1707560916793,150.0,0.00022493,2]
[313668247,1707560916832,150.0,0.00022403,2]
[313668248,1707560916869,150.0,0.00022435,2]
[313668249,1707560916903,150.0,0.00022449,2]
[313668250,1707560916940,150.0,0.00022343,2]
[313668251,1707560916971,150.0,0.00022437,2]
[313668252,1707560917008,150.0,0.00022439,2]
[313668253,1707560917035,150.0,0.00022337,2]
[313668254,1707560917073,150.0,0.0002236,2]
[313668255,1707560917280,150.0,0.00022424,2]
[313668256,1707560917313,150.0,0.00022367,2]
[313668257,1707560917378,150.0,0.00022386,2]
[313668258,1707560917440,150.0,0.00022367,2]
[313668259,1707560917471,150.0,0.00022417,2]
[313668260,1707560917501,150.0,0.00022419,2]
[313668261,1707560917535,150.0,0.00022349,2]
[313668262,1707560917575,150.0,0.00022436,2]
[313668263,1707560917712,150.0,0.00022427,2]
[313668264,1707560917746,150.0,0.00022346,2]
[313668265,1707560917782,150.0,0.00022378,2]
[313668266,1707560917822,150.0,0.00022417,2]
[313668267,1707560917849,150.0,0.00022344,2]
[313668268,1707560917889,150.0,0.00022332,2]
[313668269,1707560917916,150.0,0.00022365,2]
[313668270,1707560917944,150.0,0.00022415,2]
[313668271,1707560917988,150.0,0.0002239,2]
[313668272,1707560918043,150.0,0.00022337,2]
[313668273,1707560918093,150.0,0.00022342,2]
[313668274,1707560918174,150.0,0.00022445,2]
[313668275,1707560918214,150.0,0.00022421,2]
[313668276,1707560918263,150.0,0.00022394,2]
[313668277,1707560918297,150.0,0.00022345,2]
[313668278,1707560918383,150.0,0.00022388,2]
[313668279,1707560918435,150.0,0.00022497,2]
[313668280,1707560918463,1500.0,0.00022327,2]
[313668281,1707560918494,1500.0,0.0002238,2]
[313668282,1707560918531,1500.0,0.00022484,2]
[313668283,1707560918561,1500.0,0.00022461,2]
[313668284,1707560918592,150.0,0.00022393,2]
[313668285,1707560918629,1500.0,0.00022385,2]
[313668286,1707560918672,1500.0,0.00022435,2]
[313668287,1707560918700,1500.0,0.00022415,2]
[313668288,1707560918848,1500.0,0.00022397,2]
[313668289,1707560918888,1500.0,0.00022326,2]
[313668290,1707560919057,150.0,0.00022375,2]
[313668291,1707560919217,150.0,0.00022381,2]
[313668292,1707560919263,150.0,0.00022372,2]
[313668293,1707560919350,150.0,0.00022372,2]
[313668294,1707560919409,170.24669159,0.00022342,2]
[313668295,1707560919439,300.0,0.00022428,2]
[313668296,1707560919470,150.0,0.00022436,2]
[313668297,1707560921682,1142.25327082,0.00022391,2]
[313668298,1707560925937,300.0,0.00022342,2]
[313668299,1707560925970,300.0,0.00022337,2]
[313668300,1707560926010,312.21727144,0.00022461,2]
[313668301,1707560947035,155.0,0.000223,2]
[313668303,1707560967211,5000.0,0.00022494,2]
[313668304,1707560971039,155.0,0.000223,2]
[313668306,1707560979155,972.83124133,0.000225,2]
[313668307,1707560996227,206.00860104,0.000223,2]
[313668314,1707561032034,-150.0,0.00022501,2]
[313668316,1707561032044,-300.0,0.00022503,2]
[313668318,1707561032054,-150.0,0.00022505,2]
[313668319,1707561032063,-150.0,0.00022506,2]
[313668320,1707561032073,-150.0,0.00022508,2]
[313668321,1707561032087,-150.0,0.00022509,2]
[313668322,1707561032097,-150.0,0.00022509,2]
[313668323,1707561032106,-300.0,0.00022514,2]
[313668324,1707561032115,-11827.90590289,0.00022517,2]
[313668325,1707561032142,-2436.7081153,0.00022517,2]
[313668326,1707561032152,-573.46354776,0.00022518,2]
[313668327,1707561032164,-879.76098058,0.00022518,2]
[313668328,1707561032177,-46.77547166,0.00022518,2]
[313668329,1707561032186,-150.0,0.00022519,2]
[313668330,1707561032196,-150.0,0.00022519,2]
[313668331,1707561032206,-150.0,0.0002252,2]
[313668332,1707561032215,-62.93700666,0.0002252,2]
[313668333,1707561032226,-546.06149217,0.0002252,2]
[313668334,1707561032237,-82.27368318,0.0002252,2]
[313668335,1707561032246,-300.0,0.00022523,2]
[313668336,1707561032256,-48.9114465,0.00022525,2]
[313668337,1707561032276,-679.56013266,0.00022525,2]
[313668338,1707561032288,-348.40712581,0.00022525,2]
[313668339,1707561032368,-7505.71969645,0.00022525,2]
[313668340,1707561032380,-270.98804803,0.00022525,2]
[313668344,1707561038082,-3109.29694501,0.00022525,2]
[313668345,1707561038093,-150.0,0.00022526,2]
[313668346,1707561038103,-150.0,0.0002253,2]
[313668347,1707561038112,-150.0,0.0002253,2]
[313668348,1707561038121,-150.0,0.0002253,2]
[313668349,1707561038133,-1500.0,0.00022533,2]
[313668350,1707561038142,-150.0,0.00022534,2]
[313668351,1707561038151,-150.0,0.00022536,2]
[313668352,1707561038163,-150.0,0.00022536,2]
[313668353,1707561038172,-150.0,0.00022537,2]
[313668354,1707561038181,-1500.0,0.00022538,2]
[313668355,1707561038191,-156.45789886,0.0002254,2]
[313668356,1707561038200,-13483.26789885,0.0002254,2]
[313668504,1707561040655,-684.99583631,0.0002254,2]
[313668505,1707561040708,-891.51412651,0.0002254,2]
[313668506,1707561041427,-940.22213833,0.0002254,2]
[313668507,1707561041437,-204.88595886,0.0002254,2]
[313668508,1707561041573,-899.0056698,0.0002254,2]
[313668511,1707561042626,158.89475861,0.00022493,2]
[313668533,1707561043047,-1588.94284284,0.0002254,2]
[313668536,1707561043059,-718.16092439,0.0002254,2]
[313668537,1707561043158,-12589.00460411,0.0002254,2]
[313668538,1707561043168,-150.0,0.0002254,2]
[313668539,1707561043177,-150.0,0.0002254,2]
[313668540,1707561043186,-150.0,0.00022541,2]
[313668541,1707561043194,-150.0,0.00022543,2]
[313668542,1707561043202,-835.50290544,0.00022543,2]
[313668543,1707561043214,-664.49709456,0.00022543,2]
[313668544,1707561043223,-1500.0,0.00022547,2]
[313668545,1707561043232,-150.0,0.00022553,2]
[313668546,1707561043241,-157.57142482,0.00022555,2]
[313668547,1707561043249,-621.26,0.00022555,2]
[313668548,1707561043259,-150.0,0.0002256,2]
[313668549,1707561043268,-150.0,0.00022561,2]
[313668550,1707561043277,-15000.0,0.00022563,2]
[313668551,1707561043286,-1500.0,0.00022565,2]
[313668552,1707561043295,-307.40170157,0.00022565,2]
[313668553,1707561043304,-150.0,0.00022568,2]
[313668554,1707561043313,-300.0,0.00022571,2]
[313668555,1707561043322,-300.0,0.00022575,2]
[313668556,1707561043330,-150.0,0.00022575,2]
[313668557,1707561043339,-150.0,0.00022577,2]
[313668558,1707561043349,-150.0,0.00022577,2]
[313668559,1707561043358,-150.0,0.00022579,2]
[313668560,1707561043367,-150.0,0.00022579,2]
[313668561,1707561043376,-300.0,0.00022579,2]
[313668562,1707561043385,-1268.03139552,0.0002258,3]
[313668563,1707561043395,-1500.0,0.0002258,2]
[313668564,1707561043404,-1000.0,0.00022582,2]
[313668565,1707561043414,-150.0,0.00022583,2]
[313668566,1707561043423,-150.0,0.00022583,2]
[313668567,1707561043432,-150.0,0.00022584,2]
[313668568,1707561043442,-150.0,0.00022587,2]
[313668570,1707561043452,-150.0,0.0002259,2]
[313668572,1707561043462,-321.96726608,0.00022591,2]
[313668574,1707561043474,-155.63650478,0.00022591,2]
[313668576,1707561043485,-210.5051811,0.00022591,2]